{"text_format":"1","workbook":"xlsx","n_sheets":2,"sheets":["JOKERs","Listas"],"not_rendered":{"charts":0,"images":17,"macros":1,"external_links":0,"defined_names":17,"comments":0,"pivot_tables":0},"unopened":[],"bounds":{"document_bytes":16777216,"sheet_cells":100000,"rows_first":2000,"rows_last":500,"rows_between":2000,"halvings":0,"cell_chars":16384,"cell_head_chars":4096},"cells_cut":0,"cells_raw":0,"read":"whole","date_system":"1900"}

{"sheet":"JOKERs","index":0,"n_rows":28,"n_cols":12,"rows_kept":28,"cut":false,"hidden":false,"merged":[[26,3,26,4],[26,5,26,6],[27,3,27,4],[27,5,27,6],[0,1,0,11],[17,9,17,11],[18,9,18,11],[15,8,15,9],[16,8,16,9],[12,8,12,11],[13,8,14,11],[2,4,10,11],[12,1,12,2],[12,3,12,4],[13,3,13,4],[14,3,14,4],[12,5,12,6],[16,3,16,4],[17,3,17,4],[18,3,18,4],[23,3,23,4],[23,5,23,6],[19,3,19,4],[21,3,21,4],[21,5,21,6],[13,5,13,6],[14,5,14,6],[15,5,15,6],[16,5,16,6],[17,5,17,6],[18,5,18,6],[19,5,19,6],[15,3,15,4],[20,3,20,4],[20,5,20,6],[19,9,20,11],[19,8,20,8],[25,3,25,4],[25,5,25,6],[22,3,22,4],[22,5,22,6],[24,3,24,4],[24,5,24,6]]}
[null,"Instrucciones para rellenar la declaración de Jokers del Gr. N5:\n1. Seleccionar vehículo: se introduce automáticamente su ficha de homologación y las opciones de esta homologación en relación a los Jokers homologados.\n2. Rellenar filas 6 a 11. Observaciones:\n       - Competición: seleccionar de la lista desplegable.\n       - Nº carrocería RFEdeA: número de carrocería reflejado en la placa de identificación de la estructura de seguridad.\n       - Nº Pasaporte Técnico RFEdeA: solo si se dispone del mismo.\n3. Definir Jokers instalados en el vehículo.\n4. Introducir nombre del firmante.\n5. Firmar el documento: se debe introducir la firma escaneada del competidor/representante, piloto o copiloto.\n6. Entregar el documento: enviar a la siguiente dirección de correo electrónico: fernando.alvarez@rfeda.es y entregar al Delegado Técnico en las Verificaciones Técnicas Previas."]
[]
[null,"VEHÍCULO\nCAR",null,null,{"$f":"\"IMAG\"&VLOOKUP(Listas!$B$32,Listas!A2:C14,3)","v":"IMAG1"}]
[null,"FICHA HOMOLOGACIÓN\nHOMOLOGATION FORM",{"$f":"VLOOKUP(Listas!B32,Listas!A17:B29,2)","v":"N5 - R - 01"}]
[]
[null,"Competición\nCompetition","Seleccionar prueba CERA o CERT"]
[null,"Nº Competidor\nCompetitor Nº","Introducir nº"]
[null,"Nombre competidor\nCompetitor name","Introducir nombre"]
[null,"Nº Chasis\nChassis Nº","Introducir nº chasis"]
[null,"Nº carrocería RFEdeA\nRFEdeA Bodyshell Nº","Introducir nº carrocería RFEdeA"]
[null,"Nº Pasap. Técnico RFEdeA\nRFEdeA Technical Pass Nº","Introducir nº Pasaporte RFEdeA"]
[]
[null,"Especificaciones\nSpecification",null,"Instalado\nFitted",null,"No instalado\nNot Fitted",null,null,"Declaración de conformidad\nDeclaration of conformity"]
[null,{"$f":"IF(VLOOKUP(Listas!$B$32,Listas!$M$2:$AZ$14,Listas!N17)=\"\",\"\",VLOOKUP(Listas!$B$32,Listas!$M$2:$AZ$14,Listas!N17))","v":"Joker #1"},{"$f":"IF(VLOOKUP(Listas!$B$32,Listas!$M$2:$AZ$14,Listas!O17)=\"\",\"\",VLOOKUP(Listas!$B$32,Listas!$M$2:$AZ$14,Listas!O17))","v":"JK 01/08: Colector de escape (evolución)"},null,null,null,null,null,{"$f":"\"El abajo firmante se hace responsable de los datos del vehículo nº \"&C7&\", que figuran en este documento, y declara conocer los reglamentos por los que se rige el mismo, los cuales deberá respetar.\nThe undersigned is responsible for vehicle data nº \"&C7&\" contained in this document and acknowledges the Regulations governing the referenced vehicle, which must be respected.\"","v":"El abajo firmante se hace responsable de los datos del vehículo nº Introducir nº, que figuran en este documento, y declara conocer los reglamentos por los que se rige el mismo, los cuales deberá respetar.\nThe undersigned is responsible for vehicle data nº Introducir nº contained in this document and acknowledges the Regulations governing the referenced vehicle, which must be respected."}]
[null,{"$f":"IF(VLOOKUP(Listas!$B$32,Listas!$M$2:$AZ$14,Listas!N18)=\"\",\"\",VLOOKUP(Listas!$B$32,Listas!$M$2:$AZ$14,Listas!N18))","v":"Joker #2"},{"$f":"IF(VLOOKUP(Listas!$B$32,Listas!$M$2:$AZ$14,Listas!O18)=\"\",\"\",VLOOKUP(Listas!$B$32,Listas!$M$2:$AZ$14,Listas!O18))","v":"JK 01/08: Caja de cambios (evolución)"}]
[null,{"$f":"IF(VLOOKUP(Listas!$B$32,Listas!$M$2:$AZ$14,Listas!N19)=\"\",\"\",VLOOKUP(Listas!$B$32,Listas!$M$2:$AZ$14,Listas!N19))","v":""},{"$f":"IF(VLOOKUP(Listas!$B$32,Listas!$M$2:$AZ$14,Listas!O19)=\"\",\"\",VLOOKUP(Listas!$B$32,Listas!$M$2:$AZ$14,Listas!O19))","v":""},null,null,null,null,null,"Competidor/Representante\nCompetitor/Representative        ",null,"Piloto\nDriver","Copiloto\nCo-driver"]
[null,{"$f":"IF(VLOOKUP(Listas!$B$32,Listas!$M$2:$AZ$14,Listas!N20)=\"\",\"\",VLOOKUP(Listas!$B$32,Listas!$M$2:$AZ$14,Listas!N20))","v":""},{"$f":"IF(VLOOKUP(Listas!$B$32,Listas!$M$2:$AZ$14,Listas!O20)=\"\",\"\",VLOOKUP(Listas!$B$32,Listas!$M$2:$AZ$14,Listas!O20))","v":""}]
[null,{"$f":"IF(VLOOKUP(Listas!$B$32,Listas!$M$2:$AZ$14,Listas!N21)=\"\",\"\",VLOOKUP(Listas!$B$32,Listas!$M$2:$AZ$14,Listas!N21))","v":""},{"$f":"IF(VLOOKUP(Listas!$B$32,Listas!$M$2:$AZ$14,Listas!O21)=\"\",\"\",VLOOKUP(Listas!$B$32,Listas!$M$2:$AZ$14,Listas!O21))","v":""},null,null,null,null,null,"Fecha\nDate",{"$f":"TODAY()","v":"2020-07-21"}]
[null,{"$f":"IF(VLOOKUP(Listas!$B$32,Listas!$M$2:$AZ$14,Listas!N22)=\"\",\"\",VLOOKUP(Listas!$B$32,Listas!$M$2:$AZ$14,Listas!N22))","v":""},{"$f":"IF(VLOOKUP(Listas!$B$32,Listas!$M$2:$AZ$14,Listas!O22)=\"\",\"\",VLOOKUP(Listas!$B$32,Listas!$M$2:$AZ$14,Listas!O22))","v":""},null,null,null,null,null,"Nombre\nName","Introducir nombre del firmante"]
[null,{"$f":"IF(VLOOKUP(Listas!$B$32,Listas!$M$2:$AZ$14,Listas!N23)=\"\",\"\",VLOOKUP(Listas!$B$32,Listas!$M$2:$AZ$14,Listas!N23))","v":""},{"$f":"IF(VLOOKUP(Listas!$B$32,Listas!$M$2:$AZ$14,Listas!O23)=\"\",\"\",VLOOKUP(Listas!$B$32,Listas!$M$2:$AZ$14,Listas!O23))","v":""},null,null,null,null,null,"Firma\nSignature","Introducir firma escaneada"]
[null,{"$f":"IF(VLOOKUP(Listas!$B$32,Listas!$M$2:$AZ$14,Listas!N24)=\"\",\"\",VLOOKUP(Listas!$B$32,Listas!$M$2:$AZ$14,Listas!N24))","v":""},{"$f":"IF(VLOOKUP(Listas!$B$32,Listas!$M$2:$AZ$14,Listas!O24)=\"\",\"\",VLOOKUP(Listas!$B$32,Listas!$M$2:$AZ$14,Listas!O24))","v":""}]
[null,{"$f":"IF(VLOOKUP(Listas!$B$32,Listas!$M$2:$AZ$14,Listas!N25)=\"\",\"\",VLOOKUP(Listas!$B$32,Listas!$M$2:$AZ$14,Listas!N25))","v":""},{"$f":"IF(VLOOKUP(Listas!$B$32,Listas!$M$2:$AZ$14,Listas!O25)=\"\",\"\",VLOOKUP(Listas!$B$32,Listas!$M$2:$AZ$14,Listas!O25))","v":""}]
[null,{"$f":"IF(VLOOKUP(Listas!$B$32,Listas!$M$2:$AZ$14,Listas!N26)=\"\",\"\",VLOOKUP(Listas!$B$32,Listas!$M$2:$AZ$14,Listas!N26))","v":""},{"$f":"IF(VLOOKUP(Listas!$B$32,Listas!$M$2:$AZ$14,Listas!O26)=\"\",\"\",VLOOKUP(Listas!$B$32,Listas!$M$2:$AZ$14,Listas!O26))","v":""}]
[null,{"$f":"IF(VLOOKUP(Listas!$B$32,Listas!$M$2:$AZ$14,Listas!N27)=\"\",\"\",VLOOKUP(Listas!$B$32,Listas!$M$2:$AZ$14,Listas!N27))","v":""},{"$f":"IF(VLOOKUP(Listas!$B$32,Listas!$M$2:$AZ$14,Listas!O27)=\"\",\"\",VLOOKUP(Listas!$B$32,Listas!$M$2:$AZ$14,Listas!O27))","v":""}]
[null,{"$f":"IF(VLOOKUP(Listas!$B$32,Listas!$M$2:$AZ$14,Listas!N28)=\"\",\"\",VLOOKUP(Listas!$B$32,Listas!$M$2:$AZ$14,Listas!N28))","v":""},{"$f":"IF(VLOOKUP(Listas!$B$32,Listas!$M$2:$AZ$14,Listas!O28)=\"\",\"\",VLOOKUP(Listas!$B$32,Listas!$M$2:$AZ$14,Listas!O28))","v":""}]
[null,{"$f":"IF(VLOOKUP(Listas!$B$32,Listas!$M$2:$AZ$14,Listas!N29)=\"\",\"\",VLOOKUP(Listas!$B$32,Listas!$M$2:$AZ$14,Listas!N29))","v":""},{"$f":"IF(VLOOKUP(Listas!$B$32,Listas!$M$2:$AZ$14,Listas!O29)=\"\",\"\",VLOOKUP(Listas!$B$32,Listas!$M$2:$AZ$14,Listas!O29))","v":""}]
[null,{"$f":"IF(VLOOKUP(Listas!$B$32,Listas!$M$2:$AZ$14,Listas!N30)=\"\",\"\",VLOOKUP(Listas!$B$32,Listas!$M$2:$AZ$14,Listas!N30))","v":""},{"$f":"IF(VLOOKUP(Listas!$B$32,Listas!$M$2:$AZ$14,Listas!O30)=\"\",\"\",VLOOKUP(Listas!$B$32,Listas!$M$2:$AZ$14,Listas!O30))","v":""}]
[null,{"$f":"IF(VLOOKUP(Listas!$B$32,Listas!$M$2:$AZ$14,Listas!N31)=\"\",\"\",VLOOKUP(Listas!$B$32,Listas!$M$2:$AZ$14,Listas!N31))","v":""},{"$f":"IF(VLOOKUP(Listas!$B$32,Listas!$M$2:$AZ$14,Listas!O31)=\"\",\"\",VLOOKUP(Listas!$B$32,Listas!$M$2:$AZ$14,Listas!O31))","v":""}]

{"sheet":"Listas","index":1,"n_rows":36,"n_cols":36,"rows_kept":36,"cut":false,"hidden":true,"merged":[[0,12,0,45],[0,4,0,11],[0,0,0,1],[15,0,15,1],[1,4,1,5],[1,6,1,7],[1,8,1,9],[1,10,1,11]]}
["Vehículos R5 Homologados",null,"FOTOS",null,"JOKERs",null,null,null,null,null,null,null,"JOKERs"]
[1,"Suzuki Swift R+ N5 (ARV)",1,null,"Ford Fiesta R5",null,"Citroën DS3 R5",null,"Peugeot 208 T16 R5",null,"Skoda Fabia R5",null,1,{"$f":"B2","v":"Suzuki Swift R+ N5 (ARV)"},"Joker #1","Joker #2",null,null,null,null,null,null,null,null,null,null,null,null,null,null,null,null,null,"JK 01/08: Colector de escape (evolución)","JK 01/08: Caja de cambios (evolución)"]
[2,"Ford Fiesta N5 (RMC)",2,null,"Software","12/05 ER / 2.13.5 (1)","Software","11/02 ER / 10.8.2","Software","12/01 ER / 10.8.2","Joker #1","13/01 ERJ / Crankshaft bearing caps",2,{"$f":"B3","v":"Ford Fiesta N5 (RMC)"},"Joker #1",null,null,null,null,null,null,null,null,null,null,null,null,null,null,null,null,null,null,"JK 01/02: Colector de escape (evolución)"]
[3,"Citroën DS3 N5 (RMC)",3,null,"Joker #1","19/09 ER / Piston","Software","16/07 ER / 10.8.3","Software","18/06 ER / 10.8.3",null,null,3,"Citroën DS3 N5 (RMC)","Joker #1",null,null,null,null,null,null,null,null,null,null,null,null,null,null,null,null,null,null,"JK 01/02: Colector de escape (evolución)"]
[4,"Peugeot 208 3P N5 (RMC)",4,null,null,null,null,null,null,null,null,null,4,"Peugeot 208 3P N5 (RMC)","Joker #1",null,null,null,null,null,null,null,null,null,null,null,null,null,null,null,null,null,null,"JK 01/02: Colector de escape (evolución)"]
[5,"Renault Clio N5 (RMC)",5,null,null,null,null,null,null,null,null,null,5,"Renault Clio N5 (RMC)","Joker #1",null,null,null,null,null,null,null,null,null,null,null,null,null,null,null,null,null,null,"JK 01/02: Colector de escape (evolución)"]
[6,"Volkswagen Polo N5 (ARV)",6,null,null,null,null,null,null,null,null,null,6,"Volkswagen Polo N5 (ARV)","Joker #1","Joker #2","Joker #3",null,null,null,null,null,null,null,null,null,null,null,null,null,null,null,null,"JK 01/01: Caja de cambios (evolución)","JK 02/02: Colector de escape (evolución)","JK 03/04: Refrigeración de frenos (fiabilidad)"]
[7,"Peugeot 308 N5 (RMC)",7,null,null,null,null,null,null,null,null,null,7,"Peugeot 308 N5 (RMC)"]
[8,"Volkswagen Polo N5 (RMC)",8,null,null,null,null,null,null,null,null,null,8,"Volkswagen Polo N5 (RMC)"]
[9,"Suzuki Swift Sport R+ N5 (ARV)",9,null,null,null,null,null,null,null,null,null,9,"Suzuki Swift Sport R+ N5 (ARV)","Joker #1","Joker #2","Joker #3",null,null,null,null,null,null,null,null,null,null,null,null,null,null,null,null,"JK 01/02: Refrigeración de frenos (fiabilidad)","JK 02/03: Carrocería (fiabilidad)","JK 03/04: Pistones (evolución)"]
[10,"Kia Rio N5 (RMC)",10,null,null,null,null,null,null,null,null,null,10,"Kia Rio N5 (RMC)"]
[11,"Citroën C3 N5 (RMC)",11,null,null,null,null,null,null,null,null,null,11,"Citroën C3 N5 (RMC)"]
[12,"Nissan Micra N5 (RMC)",12,null,null,null,null,null,null,null,null,null,12,"Nissan Micra N5 (RMC)"]
[13,"VW Polo 5P N5 (RMC)",13,null,null,null,null,null,null,null,null,null,13,"VW Polo 5P N5 (RMC)"]
[null,null,null,null,"Joker #2","19/09 ER / Flywheel + clutch","Joker #1","15/06 ER Gearbox casing","Joker #1","17/05 ER Gearbox casing"]
["FH y Extensiones",null,"Rallyes",null,"Joker #3","19/09 ER / Cylinder head","Joker #2","23/01 ERJ Engine cooling fan","Joker #2","30/01 ERJ Engine cooling fan",null,null,null,"Nº automatizar celdas Jokers","Nº automatizar celdas Jokers"]
[1,"N5 - R - 01","Seleccionar prueba CERA o CERT",null,"Joker #4","19/09 ER / Camshafts (I + E)","Joker #3","23/01 ERJ Alternator + engine block machining","Joker #3","30/01 ERJ Alternator + engine block machining",null,null,null,3,22]
[2,"N5 - R - 03","CERA",null,"Joker #5","19/09 ER / Exhaust manifold","Joker #4","23/01 ERJ / Power steering pump tank","Joker #4","30/01 ERJ / Power steering pump tank",null,null,null,4,23]
[3,"N5 - R - 04","Rallye Ourense Termal",null,null,null,null,null,null,null,null,null,null,5,24]
[4,"N5 - R - 05","Rallye de Ferrol",null,null,null,null,null,null,null,null,null,null,6,25]
[5,"N5 - R - 06","Rallye Princesa de Asturias",null,null,null,null,null,null,null,null,null,null,7,26]
[6,"N5 - R - 07","Rallye Villa de Llanes",null,null,null,null,null,null,null,null,null,null,8,27]
[7,"N5 - R - 09","Rallye Cataluña - Costa Daurada",null,null,null,null,null,null,null,null,null,null,9,28]
[8,"N5 - R - 10","Rallye La Nucia",null,null,null,null,null,null,null,null,null,null,10,29]
[9,"N5 - R - 11","Rallye Islas Canarias",null,null,null,null,null,null,null,null,null,null,11,30]
[10,"N5 - R - 12","Rallye CAM - RACE",null,null,null,null,null,null,null,null,null,null,12,31]
[11,"N5 - R - 13",null,null,null,null,null,null,null,null,null,null,null,13,32]
[12,"N5 - R - 14",null,null,null,null,null,null,null,null,null,null,null,14,33]
[13,"N5 - R - 15",null,null,null,null,null,null,null,null,null,null,null,15,34]
[null,null,"CERT",null,null,null,null,null,null,null,null,null,null,16,35]
[null,0,"Rallye Tierrras de Lorca",null,null,null,null,null,null,null,null,null,null,17,36]
[null,{"$f":"B31+1","v":1},"Rallye Terras da Auga",null,null,null,null,null,null,null,null,null,null,18,37]
[null,null,"Rallye Isla de los Volcanes",null,null,null,null,null,null,null,null,null,null,19,38]
[null,null,"Rallye de Madrid",null,null,null,null,null,null,null,null,null,null,20,39]
[null,null,null,null,null,null,null,null,null,null,null,null,null,21,40]
[null,null,null,null,null,null,null,null,null,null,null,null,null,22,41]